fUST/lending_fUST_20250725
["ID","MTS","AMOUNT","RATE_DAILY","PERIOD"]
[374667704,1753405855899,-408.84163523,0.00018667,2]
[374667705,1753405855906,-460.0,0.00018667,2]
[374667706,1753405855913,-460.0,0.00018667,2]
[374667707,1753405855923,-460.0,0.00018667,2]
[374667708,1753405855932,-460.0,0.00018667,2]
[374667709,1753405855941,-228.098356,0.00018667,2]
[374667710,1753405855950,-460.0,0.00018667,2]
[374667711,1753405855959,-797.44,0.00018667,2]
[374667712,1753405855969,-460.0,0.00018667,2]
[374667713,1753405855979,-1009.95,0.00018667,2]
[374667714,1753405855989,-151.0,0.00018667,2]
[374667715,1753405855998,-1461.37,0.00018667,2]
[374667716,1753405856007,-873.27,0.00018667,2]
[374667717,1753405856017,-460.0,0.00018667,2]
[374667718,1753405856026,-720.64,0.00018667,2]
[374667719,1753405856035,-460.0,0.00018667,2]
[374667720,1753405856045,-478.9,0.00018667,2]
[374667721,1753405856055,-2863.12,0.00018667,2]
[374667722,1753405856067,-460.0,0.00018667,2]
[374667723,1753405856076,-570.91,0.00018667,2]
[374667724,1753405856086,-460.0,0.00018667,2]
[374667725,1753405856095,-151.0,0.00018667,2]
[374667726,1753405856105,-1139.2,0.00018667,2]
[374667727,1753405856114,-576.02,0.00018667,2]
[374667728,1753405856123,-460.0,0.00018667,2]
[374667729,1753405856133,-542.679909,0.00018667,2]
[374667730,1753405856143,-460.0,0.00018667,2]
[374667731,1753405856152,-151.0,0.00018667,2]
[374667732,1753405856162,-542.679909,0.00018667,2]
[374667733,1753405856171,-831.56,0.00018667,2]
[374667734,1753405856182,-1082.99,0.00018667,2]
[374667735,1753405856191,-1185.33,0.00018667,2]
[374667736,1753405856201,-1580.14,0.00018667,2]
[374667737,1753405856211,-460.0,0.00018667,2]
[374667738,1753405856221,-186.193279,0.00018667,2]
[374667739,1753405856231,-317.47886199,0.00018667,2]
[374667740,1753405856240,-186.193279,0.00018667,2]
[374667741,1753405856250,-460.0,0.00018667,2]
[374667742,1753405856259,-460.0,0.00018667,2]
[374667743,1753405856269,-842.02,0.00018667,2]
[374667744,1753405856278,-630.13,0.00018667,2]
[374667745,1753405856288,-460.0,0.00018667,2]
[374667746,1753405856298,-460.0,0.00018667,2]
[374667747,1753405856307,-460.0,0.00018667,2]
[374667748,1753405856322,-460.0,0.00018667,2]
[374667749,1753405856333,-825.34,0.00018667,2]
[374667750,1753405856343,-1609.8,0.00018667,2]
[374667751,1753405856352,-851.14,0.00018688,2]
[374667752,1753405856362,-460.0,0.00018688,2]
[374667753,1753405856372,-416.72459286,0.00018688,2]
[374667754,1753405856381,-460.0,0.00018688,2]
[374667755,1753405856391,-460.0,0.00018688,2]
[374667756,1753405856401,-408.83684479,0.00018688,2]
[374667757,1753405856410,-460.0,0.00018688,2]
[374667758,1753405856420,-500.0,0.00018688,2]
[374667759,1753405856431,-460.0,0.00018688,2]
[374667760,1753405856440,-460.0,0.00018688,2]
[374667761,1753405856450,-460.0,0.00018688,2]
[374667762,1753405856459,-460.0,0.00018688,2]
[374667763,1753405856469,-575.57326437,0.00018688,2]
[374667764,1753405856478,-460.0,0.00018688,2]
[374667765,1753405856488,-460.0,0.00018688,2]
[374667766,1753405856498,-460.0,0.00018688,2]
[374667767,1753405856507,-460.0,0.00018688,2]
[374667768,1753405856517,-460.0,0.00018688,2]
[374667769,1753405856526,-1129.03,0.00018688,2]
[374667770,1753405856535,-460.0,0.00018688,2]
[374667771,1753405856545,-500.0,0.0001869,2]
[374667772,1753405856555,-500.48842012,0.0001869,2]
[374667773,1753405856570,-500.0,0.0001869,2]
[374667774,1753405856579,-500.0,0.0001869,2]
[374667775,1753405856589,-508.53022819,0.0001869,2]
[374667776,1753405856599,-500.0,0.0001869,2]
[374667777,1753405856609,-500.0,0.0001869,2]
[374667778,1753405856619,-500.0,0.0001869,2]
[374667779,1753405856628,-500.0,0.0001869,2]
[374667780,1753405856638,-500.0,0.0001869,2]
[374667781,1753405856648,-501.221856,0.0001869,2]
[374667782,1753405856657,-370.46457657,0.0001869,2]
[374667783,1753405856667,-500.0,0.00018693,2]
[374667784,1753405856677,-374.76865682,0.00018703,2]
[374667785,1753405856687,-158.70210908,0.00018703,2]
[374667786,1753405856697,-500.0,0.00018703,2]
[374667787,1753405856706,-3532.99108288,0.00018705,2]
[374667788,1753405856716,-460.0,0.0001871,2]
[374667789,1753405856726,-460.0,0.0001871,2]
[374667790,1753405856736,-460.0,0.0001871,2]
[374667791,1753405856745,-447.33400818,0.0001871,2]
[374667792,1753405856755,-515.04491027,0.0001871,2]
[374667793,1753405856764,-460.0,0.0001871,2]
[374667794,1753405856773,-460.0,0.0001871,2]
[374667795,1753405856783,-662.33,0.0001871,2]
[374667796,1753405856792,-634.74,0.0001871,2]
[374667797,1753405856802,-155.619097,0.0001871,2]
[374667798,1753405856815,-460.0,0.0001871,2]
[374667799,1753405856824,-460.0,0.0001871,2]
[374667800,1753405856835,-1638.24,0.0001871,2]
[374667801,1753405856844,-1280.01,0.0001871,2]
[374667802,1753405856853,-545.16,0.0001871,2]
[374667803,1753405856863,-516.35,0.0001871,2]
[374667804,1753405856873,-632.2,0.0001871,2]
[374667805,1753405856882,-1029.2,0.0001871,2]
[374667806,1753405856891,-6996.8,0.0001871,2]
[374667807,1753405856900,-2763.92,0.0001871,2]
[374667808,1753405856910,-4359.35292185,0.00018728,2]
[374667809,1753405856920,-519.82922159,0.00018768,2]
[374667810,1753405856929,-1500.0,0.00018768,2]
[374667811,1753405856938,-1500.0,0.00018768,2]
[374667812,1753405856947,-1500.0,0.00018768,2]
[374667813,1753405856956,-1500.0,0.00018768,2]
[374667814,1753405856965,-440.60030422,0.00018783,2]
[374667815,1753405856977,-500.0,0.00018785,2]
[374667816,1753405856986,-505.42368521,0.00018785,2]
[374667817,1753405856995,-514.09641807,0.00018789,2]
[374667818,1753405857005,-460.0,0.00018789,2]
[374667819,1753405857014,-460.0,0.00018789,2]
[374667820,1753405857023,-460.0,0.00018789,2]
[374667821,1753405857032,-470.3,0.00018789,2]
[374667822,1753405857041,-151.0,0.000188,2]
[374667823,1753405857051,-460.0,0.00018808,2]
[374667824,1753405857066,-842.02,0.00018808,2]
[374667825,1753405857085,-797.25,0.00018808,2]
[374667826,1753405857096,-1339.86,0.00018808,2]
[374667827,1753405857106,-1455.26,0.00018808,2]
[374667828,1753405857116,-646.53,0.00018808,2]
[374667829,1753405857126,-689.47,0.00018808,2]
[374667830,1753405857135,-1116.98,0.00018808,2]
[374667831,1753405857145,-2881.55,0.00018808,2]
[374667832,1753405857155,-4319.45,0.00018808,2]
[374667833,1753405857164,-460.0,0.00018808,2]
[374667834,1753405857173,-460.0,0.00018808,2]
[374667835,1753405857182,-4169.87,0.00018808,2]
[374667836,1753405857191,-460.0,0.00018808,2]
[374667837,1753405857201,-2789.02,0.00018808,2]
[374667838,1753405857292,-1289.13,0.00018808,2]
[374667839,1753405857308,-226.02882219,0.00018808,2]
[374667840,1753405857321,-460.0,0.0001881,2]
[374667841,1753405857331,-460.0,0.0001881,2]
[374667842,1753405857341,-460.0,0.0001881,2]
[374667843,1753405857350,-806.93,0.0001881,2]
[374667844,1753405857360,-460.0,0.0001881,2]
[374667845,1753405857369,-460.0,0.0001881,2]
[374667846,1753405857379,-460.0,0.0001881,2]
[374667847,1753405857388,-460.0,0.0001881,2]
[374667848,1753405857397,-460.0,0.0001881,2]
[374667849,1753405857406,-552.15,0.0001881,2]
[374667850,1753405857415,-676.46,0.0001881,2]
[374667851,1753405857424,-460.0,0.0001881,2]
[374667852,1753405857434,-904.33,0.0001881,2]
[374667853,1753405857443,-593.42312737,0.0001881,2]
[374667854,1753405857452,-1156.4,0.0001881,2]
[374667855,1753405857461,-500.81,0.0001881,2]
[374667856,1753405857471,-156.36003472,0.0001881,2]
[374667857,1753405857479,-460.0,0.0001881,2]
[374667858,1753405857489,-680.32,0.0001881,2]
[374667859,1753405857498,-460.0,0.0001881,2]
[374667860,1753405857507,-1029.72,0.0001881,2]
[374667861,1753405857517,-477.48780193,0.0001881,2]
[374667862,1753405857526,-723.77,0.0001881,2]
[374667863,1753405857535,-460.0,0.0001881,2]
[374667864,1753405857544,-460.0,0.0001881,2]
[374667865,1753405857553,-460.0,0.0001881,2]
[374667866,1753405857566,-770.55,0.0001881,2]
[374667867,1753405857575,-460.0,0.0001881,2]
[374667868,1753405857584,-460.0,0.0001881,2]
[374667869,1753405857594,-1464.77,0.0001881,2]
[374667870,1753405857603,-460.0,0.0001881,2]
[374667871,1753405857611,-1451.71,0.0001881,2]
[374667872,1753405857621,-151.0,0.0001881,2]
[374667873,1753405857630,-460.0,0.0001881,2]
[374667874,1753405857639,-460.0,0.0001881,2]
[374667875,1753405857648,-151.0,0.0001881,2]
[374667876,1753405857657,-600.06,0.0001881,2]
[374667877,1753405857666,-151.0,0.0001881,2]
[374667878,1753405857676,-460.0,0.0001881,2]
[374667879,1753405857686,-460.0,0.0001881,2]
[374667880,1753405857695,-460.0,0.0001881,2]
[374667881,1753405857705,-649.29,0.0001881,2]
[374667882,1753405857715,-151.0,0.0001881,2]
[374667883,1753405857725,-460.0,0.0001881,2]
[374667884,1753405857735,-170.561542,0.0001881,2]
[374667885,1753405857744,-460.0,0.0001881,2]
[374667886,1753405857754,-170.561542,0.0001881,2]
[374667887,1753405857763,-632.98,0.0001881,2]
[374667888,1753405857773,-700.52,0.0001881,2]
[374667889,1753405857782,-151.453999,0.0001881,2]
[374667890,1753405857792,-570.48,0.0001881,2]
[374667891,1753405857801,-464.31744254,0.0001881,2]
[374667892,1753405857811,-217.502981,0.0001881,2]
[374667893,1753405857822,-217.502981,0.0001881,2]
[374667894,1753405857832,-1352.89,0.0001881,2]
[374667895,1753405857841,-1205.96,0.0001881,2]
[374667896,1753405857852,-696.97,0.0001881,2]
[374667897,1753405857861,-542.27,0.0001881,2]
[374667898,1753405857872,-460.0,0.0001881,2]
[374667899,1753405857882,-625.29,0.0001881,2]
[374667900,1753405857892,-151.0,0.00018811,2]
[374667901,1753405857901,-151.0,0.00018811,2]
[374667902,1753405857911,-151.0,0.00018811,2]
[374667903,1753405857920,-206.1693,0.00018811,2]
[374667904,1753405857929,-337.648918,0.00018811,2]
[374667905,1753405857939,-206.1693,0.00018811,2]
[374667906,1753405857948,-337.648918,0.00018811,2]
[374667907,1753405857958,-2698.01,0.00018811,2]
[374667908,1753405857968,-550.66,0.00018811,2]
[374667909,1753405857978,-362.441595,0.00018811,2]
[374667910,1753405857987,-1284.55,0.00018811,2]
[374667911,1753405857997,-646.526861,0.00018811,2]
[374667912,1753405858006,-362.441595,0.00018811,2]
[374667913,1753405858016,-646.526861,0.00018811,2]
[374667914,1753405858026,-5026.12,0.00018811,2]
[374667915,1753405858035,-3778.26,0.00018811,2]
[374667916,1753405858044,-516.32,0.00018811,2]
[374667917,1753405858053,-460.0,0.00018812,2]
[374667918,1753405858065,-460.0,0.00018812,2]
[374667919,1753405858075,-460.0,0.00018812,2]
[374667920,1753405858084,-460.0,0.00018812,2]
[374667921,1753405858093,-460.0,0.00018812,2]
[374667922,1753405858102,-614.02,0.00018812,2]
[374667923,1753405858111,-460.0,0.00018812,2]
[374667924,1753405858121,-460.0,0.00018812,2]
[374667925,1753405858130,-460.0,0.00018812,2]
[374667926,1753405858140,-878.92,0.00018812,2]
[374667927,1753405858150,-843.8,0.00018812,2]
[374667928,1753405858159,-460.0,0.00018812,2]
[374667929,1753405858169,-460.0,0.00018812,2]
[374667930,1753405858179,-1979.39,0.00018818,2]
[374667931,1753405858189,-631.28,0.00018818,2]
[374667932,1753405858199,-460.0,0.00018818,2]
[374667933,1753405858208,-942.95,0.00018818,2]
[374667934,1753405858217,-460.0,0.00018818,2]
[374667935,1753405858227,-460.0,0.00018818,2]
[374667936,1753405858237,-460.0,0.00018818,2]
[374667937,1753405858246,-460.0,0.00018818,2]
[374667938,1753405858255,-460.0,0.00018818,2]
[374667939,1753405858265,-497.3,0.00018818,2]
[374667940,1753405858274,-1681.11,0.00018818,2]
[374667941,1753405858283,-675.8,0.00018818,2]
[374667942,1753405858293,-539.85793514,0.00018818,2]
[374667943,1753405858302,-460.0,0.00018818,2]
[374667944,1753405858312,-756.57,0.00018818,2]
[374667945,1753405858323,-821.38,0.00018818,2]
[374667946,1753405858333,-526.09,0.00018818,2]
[374667947,1753405858342,-759.71,0.00018818,2]
[374667948,1753405858351,-524.24,0.00018818,2]
[374667949,1753405858361,-460.0,0.00018818,2]
[374667950,1753405858371,-460.0,0.00018818,2]
[374667951,1753405858381,-372.92002648,0.00018818,2]
[374667952,1753405858392,-460.0,0.00018818,2]
[374667953,1753405858401,-460.0,0.00018818,2]
[374667954,1753405858411,-738.71,0.00018818,2]
[374667955,1753405858421,-151.0,0.00018819,2]
[374667956,1753405858431,-1149.0,0.00018819,2]
[374667957,1753405858440,-151.0,0.00018819,2]
[374667958,1753405858450,-246.48917632,0.00018819,2]
[374667959,1753405858460,-151.0,0.00018819,2]
[374667960,1753405858470,-500.0,0.00018819,2]
[374667961,1753405858480,-151.0,0.00018819,2]
[374667962,1753405858490,-151.0,0.00018819,2]
[374667963,1753405858499,-151.0,0.00018819,2]
[374667964,1753405858508,-500.0,0.00018819,2]
[374667965,1753405858518,-500.0,0.00018819,2]
[374667966,1753405858527,-151.0,0.00018819,2]
[374667967,1753405858537,-151.0,0.00018819,2]
[374667968,1753405858547,-151.0,0.00018819,2]
[374667969,1753405858556,-500.0,0.00018819,2]
[374667970,1753405858566,-1079.0,0.00018819,2]
[374667971,1753405858576,-500.0,0.00018819,2]
[374667972,1753405858586,-151.0,0.00018819,2]
[374667973,1753405858597,-151.0,0.00018819,2]
[374667974,1753405858609,-500.0,0.00018819,2]
[374667975,1753405858618,-500.0,0.00018819,2]
[374667976,1753405858628,-500.0,0.00018819,2]
[374667977,1753405858638,-151.0,0.00018819,2]
[374667978,1753405858648,-154.09278747,0.00018819,2]
[374667979,1753405858657,-518.89327024,0.00018819,2]
[374667980,1753405858667,-600.0,0.0001882,2]
[374667981,1753405858677,-1000.0,0.00018821,2]
[374667982,1753405858686,-500.0,0.00018821,2]
[374667983,1753405858790,-1000.0,0.00018821,2]
[374667984,1753405858800,-1000.0,0.00018821,2]
[374667985,1753405858809,-500.0,0.00018821,2]
[374667986,1753405858821,-1000.0,0.00018821,2]
[374667987,1753405858831,-556.44330305,0.00018821,2]
[374667988,1753405858840,-460.0,0.00018821,2]
[374667989,1753405858850,-460.0,0.00018821,2]
[374667990,1753405858860,-185.02,0.00018821,2]
[374667991,1753405858870,-546.94,0.00018821,2]
[374667992,1753405858879,-460.0,0.00018821,2]
[374667993,1753405858889,-460.0,0.00018821,2]
[374667994,1753405858898,-460.0,0.00018821,2]
[374667995,1753405858908,-534.4330203,0.00018821,2]
[374667996,1753405858917,-548.26,0.00018821,2]
[374667997,1753405858926,-460.0,0.00018821,2]
[374667998,1753405858936,-460.0,0.00018821,2]
[374667999,1753405858945,-460.0,0.00018821,2]
[374668000,1753405858954,-460.0,0.00018821,2]
[374668001,1753405858964,-460.0,0.00018821,2]
[374668002,1753405858975,-585.35500086,0.00018821,2]
[374668003,1753405858985,-460.0,0.00018821,2]
[374668004,1753405858994,-460.0,0.00018821,2]
[374668005,1753405859003,-460.0,0.00018821,2]
[374668006,1753405859012,-932.05,0.00018821,2]
[374668007,1753405859021,-460.0,0.00018821,2]
[374668008,1753405859030,-460.0,0.00018821,2]
[374668009,1753405859039,-460.0,0.00018821,2]
[374668010,1753405859049,-460.0,0.00018821,2]
[374668011,1753405859058,-460.0,0.00018821,2]
[374668012,1753405859072,-698.6,0.00018821,2]
[374668013,1753405859081,-460.0,0.00018821,2]
[374668014,1753405859091,-460.0,0.00018821,2]
[374668015,1753405859100,-460.0,0.00018821,2]
[374668016,1753405859110,-460.0,0.00018821,2]
[374668017,1753405859119,-460.0,0.00018821,2]
[374668018,1753405859128,-460.0,0.00018821,2]
[374668019,1753405859137,-993.5,0.00018821,2]
[374668020,1753405859147,-460.0,0.00018821,2]
[374668021,1753405859156,-422.0,0.00018837,2]
[374668022,1753405859165,-24815.01001417,0.00018841,2]
[374668023,1753405859174,-422.0,0.00018844,2]
[374668024,1753405859183,-476.79463412,0.00018858,2]
[374668025,1753405859193,-4359.35292185,0.00018866,2]
[374668026,1753405859202,-638.82,0.00018876,3]
[374668027,1753405859211,-319.42,0.00018876,3]
[374668028,1753405859220,-12624.810388,0.00018877,2]
[374668029,1753405859229,-214.7213231,0.00018877,2]
[374668030,1753405859239,-526.24749348,0.00018877,2]
[374668031,1753405859248,-231.16387093,0.00018877,2]
[374668032,1753405859258,-160.0,0.00018877,2]
[374668033,1753405859266,-840.23756827,0.00018879,2]
[374668034,1753405859275,-160.0,0.00018879,2]
[374668035,1753405859284,-215.88777038,0.00018879,2]
[374668036,1753405859293,-160.0,0.00018879,2]
[374668037,1753405859302,-3921.35328886,0.000189,2]
[374668038,1753405859311,-1121.22,0.0001893,3]
[374668039,1753405859324,-560.62,0.0001893,3]
[374668040,1753405859334,-3910.82,0.00018933,3]
[374668041,1753405859343,-2242.46,0.00018933,3]
[374668042,1753405859352,-460.0,0.00018937,2]
[374668043,1753405859361,-460.0,0.00018937,2]
[374668044,1753405859370,-839.14,0.00018937,2]
[374668045,1753405859380,-460.0,0.00018937,2]
[374668046,1753405859390,-891.45,0.00018937,2]
[374668047,1753405859399,-3004.04,0.00018937,2]
[374668048,1753405859408,-460.0,0.00018937,2]
[374668049,1753405859418,-808.95,0.00018937,2]
[374668050,1753405859432,-664.13,0.00018939,2]
[374668051,1753405859454,-636.45,0.00018939,2]
[374668052,1753405859471,-460.0,0.00018939,2]
[374668053,1753405859491,-162.40448595,0.00018939,2]
[374668054,1753405859513,-460.0,0.00018939,2]
[374668055,1753405859531,-8109.86,0.00018939,2]
[374668056,1753405859551,-4205.78,0.00018939,2]
[374668057,1753405859567,-460.0,0.00018939,2]
[374668058,1753405859585,-828.63,0.00018939,2]
[374668059,1753405859609,-460.0,0.00018939,2]
[374668060,1753405859629,-1045.24,0.00018939,2]
[374668061,1753405859643,-460.0,0.00018939,2]
[374668062,1753405859662,-876.12,0.00018939,2]
[374668063,1753405859678,-3080.87,0.00018939,2]
[374668064,1753405859695,-630.25,0.00018939,2]
[374668065,1753405859709,-460.0,0.00018939,2]
[374668066,1753405859725,-2623.82,0.00018939,2]
[374668067,1753405859741,-1224.91,0.00018939,2]
[374668068,1753405859756,-729.01,0.00018939,2]
[374668069,1753405859771,-214.7213231,0.0001894,3]
[374668070,1753405859787,-476.79463412,0.0001894,3]
[374668071,1753405859802,-12624.810388,0.0001894,3]
[374668072,1753405859819,-460.0,0.00018941,2]
[374668073,1753405859834,-333.81598796,0.00018941,2]
[374668074,1753405859849,-460.0,0.00018941,2]
[374668075,1753405859863,-335.90476564,0.00018941,2]
[374668076,1753405859878,-460.0,0.00018941,2]
[374668077,1753405859892,-460.0,0.00018941,2]
[374668078,1753405859907,-829.26,0.00018941,2]
[374668079,1753405859922,-641.73,0.00018941,2]
[374668080,1753405859936,-460.0,0.00018941,2]
[374668081,1753405859950,-460.0,0.00018941,2]
[374668082,1753405859965,-460.0,0.00018941,2]
[374668083,1753405859980,-460.0,0.00018941,2]
[374668084,1753405859995,-460.0,0.00018941,2]
[374668085,1753405860010,-210.26760973,0.00018941,2]
[374668086,1753405860027,-797.44,0.00018941,2]
[374668087,1753405860043,-460.0,0.00018941,2]
[374668088,1753405860059,-1009.95,0.00018941,2]
[374668089,1753405860079,-1461.37,0.00018941,2]
[374668090,1753405860095,-873.27,0.00018941,2]
[374668091,1753405860111,-460.0,0.00018941,2]
[374668092,1753405860126,-720.64,0.00018941,2]
[374668093,1753405860140,-460.0,0.00018941,2]
[374668094,1753405860155,-478.9,0.00018941,2]
[374668095,1753405860171,-2863.12,0.00018941,2]
[374668096,1753405860186,-460.0,0.00018941,2]
[374668097,1753405860203,-570.91,0.00018941,2]
[374668098,1753405860218,-460.0,0.00018941,2]
[374668099,1753405860234,-1139.2,0.00018941,2]
[374668100,1753405860250,-576.02,0.00018941,2]
[374668101,1753405860266,-460.0,0.00018941,2]
[374668102,1753405860281,-831.56,0.00018941,2]
[374668103,1753405860296,-1082.99,0.00018941,2]
[374668104,1753405860312,-1185.33,0.00018941,2]
[374668105,1753405860329,-1580.14,0.00018941,2]
[374668106,1753405860346,-460.0,0.00018941,2]
[374668107,1753405860355,-151.0,0.00018941,2]
[374668108,1753405860365,-460.0,0.00018941,2]
[374668109,1753405860375,-842.02,0.00018941,2]
[374668110,1753405860384,-460.0,0.00018941,2]
[374668111,1753405860394,-630.13,0.00018941,2]
[374668112,1753405860403,-460.0,0.00018941,2]
[374668113,1753405860412,-460.0,0.00018941,2]
[374668114,1753405860422,-460.0,0.00018941,2]
[374668115,1753405860606,-460.0,0.00018941,2]
[374668116,1753405860635,-825.34,0.00018941,2]
[374668117,1753405860644,-1609.8,0.00018941,2]
[374668118,1753405860654,-851.14,0.00018962,2]
[374668119,1753405860664,-460.0,0.00018962,2]
[374668120,1753405860673,-460.0,0.00018962,2]
[374668121,1753405860683,-460.0,0.00018962,2]
[374668122,1753405860692,-500.0,0.00018962,2]
[374668123,1753405860701,-460.0,0.00018962,2]
[374668124,1753405860711,-460.0,0.00018962,2]
[374668125,1753405860721,-460.0,0.00018962,2]
[374668126,1753405860730,-460.0,0.00018962,2]
[374668127,1753405860740,-460.0,0.00018962,2]
[374668128,1753405860750,-460.0,0.00018962,2]
[374668129,1753405860759,-460.0,0.00018962,2]
[374668130,1753405860769,-460.0,0.00018962,2]
[374668131,1753405860778,-1129.03,0.00018962,2]
[374668132,1753405860788,-460.0,0.00018962,2]
[374668133,1753405860798,-151.0,0.00018976,2]
[374668134,1753405860807,-151.0,0.00018976,2]
[374668135,1753405860817,-151.0,0.00018976,2]
[374668136,1753405860830,-460.0,0.00018984,2]
[374668137,1753405860839,-460.0,0.00018984,2]
[374668138,1753405860849,-557.9502536,0.00018984,2]
[374668139,1753405860859,-460.0,0.00018984,2]
[374668140,1753405860868,-460.0,0.00018984,2]
[374668141,1753405860878,-662.33,0.00018984,2]
[374668142,1753405860887,-634.74,0.00018984,2]
[374668143,1753405860897,-460.0,0.00018984,2]
[374668144,1753405860906,-460.0,0.00018984,2]
[374668145,1753405860916,-1638.24,0.00018984,2]
[374668146,1753405860925,-1280.01,0.00018984,2]
[374668147,1753405860934,-545.16,0.00018984,2]
[374668148,1753405860944,-516.35,0.00018984,2]
[374668149,1753405860953,-632.2,0.00018984,2]
[374668150,1753405860963,-1029.2,0.00018984,2]
[374668151,1753405860972,-6996.8,0.00018984,2]
[374668152,1753405860982,-151.0,0.00018984,2]
[374668153,1753405860991,-151.0,0.00018984,2]
[374668154,1753405861001,-2763.92,0.00018984,2]
[374668155,1753405861010,-151.0,0.00018984,2]
[374668156,1753405861019,-151.0,0.00018985,2]
[374668157,1753405861029,-151.0,0.00019,2]
[374668158,1753405861038,-25000.0,0.00019003,2]
[374668159,1753405861047,-4359.35292185,0.00019003,2]
[374668160,1753405861056,-3532.99108289,0.00019017,2]
[374668161,1753405861071,-151.0,0.00019024,2]
[374668162,1753405861081,-151.0,0.00019024,2]
[374668163,1753405861090,-151.0,0.00019024,2]
[374668164,1753405861099,-151.0,0.00019024,2]
[374668165,1753405861110,-151.0,0.00019024,2]
[374668166,1753405861119,-214.9,0.00019024,2]
[374668167,1753405861129,-214.9,0.00019024,2]
[374668168,1753405861138,-224.038964,0.00019044,2]
[374668169,1753405861148,-151.0,0.00019044,2]
[374668170,1753405861157,-542.679909,0.00019044,2]
[374668171,1753405861166,-542.679909,0.00019044,2]
[374668172,1753405861175,-186.193279,0.00019044,2]
[374668173,1753405861185,-186.193279,0.00019044,2]
[374668174,1753405861195,-460.0,0.00019063,2]
[374668175,1753405861204,-460.0,0.00019063,2]
[374668176,1753405861214,-460.0,0.00019063,2]
[374668177,1753405861223,-470.3,0.00019063,2]
[374668178,1753405861232,-1500.0,0.00019068,2]
[374668179,1753405861241,-460.0,0.00019082,2]
[374668180,1753405861251,-842.02,0.00019082,2]
[374668181,1753405861260,-797.25,0.00019082,2]
[374668182,1753405861268,-1339.86,0.00019082,2]
[374668183,1753405861277,-1455.26,0.00019082,2]
[374668184,1753405861286,-646.53,0.00019082,2]
[374668185,1753405861295,-689.47,0.00019082,2]
[374668186,1753405861305,-1116.98,0.00019082,2]
[374668187,1753405861315,-2881.55,0.00019082,2]
[374668188,1753405861326,-4319.45,0.00019082,2]
[374668189,1753405861336,-460.0,0.00019082,2]
[374668190,1753405861345,-341.78521337,0.00019082,2]
[374668191,1753405861355,-4169.87,0.00019082,2]
[374668192,1753405861364,-460.0,0.00019082,2]
[374668193,1753405861374,-2789.02,0.00019082,2]
[374668194,1753405861384,-1289.13,0.00019082,2]
[374668195,1753405861393,-460.0,0.00019084,2]
[374668196,1753405861403,-460.0,0.00019084,2]
[374668197,1753405861413,-806.93,0.00019084,2]
[374668198,1753405861422,-460.0,0.00019084,2]
[374668199,1753405861431,-460.0,0.00019084,2]
[374668200,1753405861441,-460.0,0.00019084,2]
[374668201,1753405861451,-460.0,0.00019084,2]
[374668202,1753405861460,-151.0,0.00019084,2]
[374668203,1753405861471,-552.15,0.00019084,2]